bitfinex-derivatives/quotes_BTCF0:USTF0_20210404
["timestamp","ask_amount","ask_price","bid_price","bid_amount"]
[1617526804379,0.50135375,57410.0,57405.0,1.0]
[1617526804579,0.50135375,57410.0,57408.0,1.0]
[1617526804778,0.50147563,57412.0,57408.0,1.0]
[1617526804978,0.50147563,57412.0,57411.0,0.10725655]
[1617526805179,0.50147563,57412.0,57411.0,0.23079655]
[1617526805378,0.10725655,57422.0,57411.0,0.23079655]
[1617526805379,0.50176489,57415.0,57411.0,0.23079655]
[1617526805578,0.50176489,57415.0,57411.0,0.24079655]
[1617526805780,0.10725655,57422.0,57411.0,0.24079655]
[1617526805781,0.50161963,57413.0,57411.0,0.24079655]
[1617526806381,0.5014138,57412.0,57411.0,0.24079655]
[1617526806579,0.5014138,57412.0,57411.0,1.24079655]
[1617526806780,0.5017786,57417.0,57411.0,1.24079655]
[1617526806979,0.10725655,57414.0,57412.0,1.0]
[1617526807179,0.5017786,57417.0,57411.0,1.24079655]
[1617526807379,0.5017786,57417.0,57415.0,3.3182]
[1617526807780,0.5017786,57417.0,57416.0,0.01]
[1617526807980,0.50183729,57418.0,57416.0,0.01]
[1617526808382,0.50177502,57417.0,57416.0,0.01]
[1617526808982,0.60903157,57417.0,57416.0,0.01]
[1617526814187,0.10725655,57417.0,57416.0,0.01]
[1617526814386,0.60908626,57417.0,57416.0,0.01]
[1617526818190,0.50182971,57417.0,57416.0,0.01]
[1617526818390,0.50182971,57417.0,57416.0,2.6017]
[1617526818591,0.50182971,57417.0,57416.0,2.5917]
[1617526818792,0.50182971,57417.0,57416.0,2.8617]
[1617526818995,0.50160019,57420.0,57416.0,2.8617]
[1617526819193,0.50160019,57420.0,57419.0,0.10725655]
[1617526819392,0.50186181,57423.0,57419.0,0.10725655]
[1617526819593,0.50186181,57423.0,57422.0,2.751]
[1617526819792,0.50186181,57423.0,57422.0,3.751]
[1617526819992,0.80982295,57441.0,57422.0,3.751]
[1617526819993,0.5019797,57425.0,57422.0,4.021]
[1617526820393,0.10725655,57441.0,57422.0,4.021]
[1617526820394,0.50207307,57426.0,57422.0,3.021]
[1617526820693,0.50207307,57426.0,57424.0,1.0]
[1617526820894,0.50206411,57425.0,57422.0,3.021]
[1617526821093,0.50206411,57425.0,57422.0,2.751]
[1617526821293,0.50208232,57426.0,57422.0,2.751]
[1617526821495,0.50208232,57426.0,57423.0,0.27]
[1617526821694,0.50208232,57426.0,57424.0,1.0]
[1617526821894,0.50208232,57426.0,57425.0,1.0]
[1617526822095,0.50218589,57427.0,57425.0,1.27]
[1617526822496,0.50263197,57433.0,57426.0,3.7532]
[1617526822696,0.50263197,57433.0,57425.0,0.27]
[1617526822896,0.50263197,57433.0,57432.0,3.7557]
[1617526823096,0.50292858,57436.0,57432.0,4.87066]
[1617526823296,0.50292858,57436.0,57435.0,0.10725655]
[1617526823497,0.50308219,57438.0,57435.0,0.10725655]
[1617526823698,0.50308219,57438.0,57435.0,0.11725655]
[1617526823898,0.50308219,57438.0,57435.0,1.11725655]
[1617526824099,0.50308219,57438.0,57437.0,1.0]
[1617526824498,0.50308219,57438.0,57437.0,0.27]
[1617526824899,0.50308219,57438.0,57436.0,1.27]
[1617526825300,0.50308219,57438.0,57437.0,0.27]
[1617526825500,0.50308219,57438.0,57437.0,4.1174]
[1617526825800,0.5031384,57439.0,57437.0,4.1174]
[1617526826000,0.5031384,57439.0,57437.0,3.8474]
[1617526826200,0.5031384,57439.0,57437.0,2.8474]
[1617526826401,0.5031384,57439.0,57438.0,0.27]
[1617526829710,0.10725655,57444.0,57438.0,0.27]
[1617526831311,0.10725655,57444.0,57443.0,0.10725655]
[1617526831713,0.10725655,57444.0,57443.0,0.37725655]
[1617526832913,0.60821897,57444.0,57443.0,0.37725655]
[1617526834316,0.10725655,57444.0,57443.0,0.37725655]
[1617526836716,0.23802655,57444.0,57443.0,0.37725655]
[1617526837018,0.73892188,57444.0,57443.0,0.37725655]
[1617526839420,0.23802655,57444.0,57443.0,0.37725655]
[1617526848032,0.10725655,57444.0,57443.0,0.37725655]
[1617526850838,0.5004553,57449.0,57443.0,0.37725655]
[1617526851238,0.20940942,57451.0,57443.0,0.37725655]
[1617526851239,0.50064737,57450.0,57443.0,0.37725655]
[1617526851639,0.60790392,57450.0,57449.0,0.10725655]
[1617526852039,0.60790392,57450.0,57449.0,0.37725655]
[1617526852239,0.60790392,57450.0,57449.0,3.53545655]
[1617526852439,0.10725655,57450.0,57449.0,3.53545655]
[1617526856746,0.50062222,57452.0,57449.0,3.53545655]
[1617526857347,0.50073511,57453.0,57449.0,3.53545655]
[1617526857750,0.5007988,57454.0,57449.0,0.37725655]
[1617526858750,2.8771,57450.0,57449.0,0.37725655]
[1617526859151,3.08502672,57450.0,57449.0,0.37725655]
[1617526861253,2.8771,57450.0,57449.0,0.37725655]
[1617526863059,0.60794393,57457.0,57449.0,0.37725655]
[1617526863658,0.60794393,57457.0,57456.0,0.10725655]
[1617526864060,0.60794393,57457.0,57456.0,0.37725655]
[1617526864458,0.81603827,57457.0,57456.0,0.37725655]
[1617526865662,0.31535089,57457.0,57456.0,0.37725655]
[1617526866465,0.81647677,57457.0,57456.0,0.37725655]
[1617526870770,1.96861677,57457.0,57456.0,0.37725655]
[1617526870968,4.87831677,57457.0,57456.0,0.37725655]
[1617526871170,3.67022243,57457.0,57456.0,0.37623597]
[1617526871569,3.87866093,57457.0,57456.0,0.37623597]
[1617526872370,4.87866093,57457.0,57456.0,0.37623597]
[1617526872770,5.99201884,57457.0,57456.0,0.37623597]
[1617526873171,6.19201884,57457.0,57456.0,0.27]
[1617526873572,6.19201884,57457.0,57430.0,0.27]
[1617526873773,6.08476229,57457.0,57446.0,0.10725655]
[1617526874073,0.50057057,57448.0,57446.0,0.10725655]
[1617526874277,0.50057057,57448.0,57447.0,0.27]
[1617526874674,0.50057057,57448.0,57435.0,0.27]
[1617526874975,0.50057057,57448.0,57434.0,2.6212]
[1617526874976,0.2,57455.0,57447.0,0.27]
[1617526875276,0.2,57455.0,57435.0,0.28]
[1617526875477,0.50049535,57448.0,57435.0,0.28]
[1617526875676,0.50049535,57448.0,57439.0,0.10725655]
[1617526876077,0.50052302,57447.0,57440.0,0.01]
[1617526876477,1.50052302,57447.0,57440.0,0.01]
[1617526877577,1.50052302,57447.0,57446.0,2.5253]
[1617526877778,1.60777957,57447.0,57446.0,2.5253]
[1617526877977,1.60777957,57447.0,57446.0,2.7953]
[1617526878379,1.60777957,57447.0,57446.0,0.27]
[1617526878780,1.60777957,57447.0,57440.0,0.27]
[1617526879181,1.60777957,57447.0,57446.0,0.27]
[1617526879381,0.60777957,57447.0,57440.0,0.27]
[1617526879780,0.56221106,57450.0,57439.0,0.10725655]
[1617526879781,0.56221106,57450.0,57446.0,0.27]
[1617526879981,0.56221106,57450.0,57439.0,0.10725655]
[1617526880199,3.28466085,57447.0,57440.0,0.27]
[1617526880385,3.28466085,57447.0,57439.0,0.10725655]
[1617526880597,0.50208651,57442.0,57439.0,0.10725655]
[1617526880785,0.63160651,57442.0,57440.0,0.27]
[1617526880981,0.12952,57442.0,57440.0,0.27]
[1617526881183,1.0,57441.0,57440.0,0.27]
[1617526881382,1.50188039,57441.0,57434.0,0.27]
[1617526881681,1.50188039,57441.0,57440.0,0.27]
[1617526881881,1.0,57441.0,57440.0,0.27]
[1617526882081,1.0,57441.0,57437.0,0.10725655]
[1617526882281,1.50215494,57441.0,57440.0,0.27]
[1617526882481,1.0,57441.0,57440.0,0.27]
[1617526882681,1.0,57441.0,57437.0,0.10725655]
[1617526882882,0.12952,57442.0,57440.0,0.27]
[1617526883082,0.711392,57441.0,57440.0,0.27]
[1617526883283,0.50211682,57440.0,57438.0,0.02]
[1617526883482,0.50211682,57440.0,57437.0,0.10725655]
[1617526883883,0.10725655,57438.0,57437.0,0.10725655]
[1617526884183,0.60939707,57438.0,57437.0,0.37725655]
[1617526885784,0.10725655,57438.0,57437.0,0.37725655]
[1617526887585,0.10725655,57438.0,57437.0,3.12325655]
[1617526892893,0.10725655,57438.0,57437.0,0.37725655]
[1617526893092,3.77955655,57438.0,57437.0,0.37725655]
[1617526893493,3.77955655,57438.0,57437.0,0.42895655]
[1617526893692,3.77955655,57438.0,57437.0,0.37725655]
[1617526893894,3.98857384,57438.0,57437.0,0.37725655]
[1617526905208,4.49087972,57438.0,57437.0,0.37725655]
[1617526907912,3.98857384,57438.0,57437.0,0.37725655]
[1617526913919,4.98857384,57438.0,57437.0,0.37725655]
[1617526914120,5.49065369,57438.0,57437.0,0.37725655]
[1617526915322,5.49065369,57438.0,57437.0,0.27]
[1617526915723,5.49065369,57438.0,57430.0,0.27]
[1617526916126,0.10725655,57431.0,57430.0,0.37725655]
[1617526916324,0.26785655,57431.0,57430.0,0.37725655]
[1617526916523,0.26785655,57431.0,57430.0,0.10725655]
[1617526916925,0.26785655,57431.0,57430.0,0.37725655]
[1617526919827,0.26785655,57431.0,57430.0,3.57695655]
[1617526920227,0.10725655,57431.0,57430.0,3.57695655]
[1617526922732,0.10725655,57431.0,57430.0,0.37725655]
[1617526923531,2.69645655,57431.0,57430.0,0.37725655]
[1617526926536,0.10725655,57431.0,57430.0,0.37725655]
[1617526926936,0.10725655,57431.0,57430.0,3.23755655]
[1617526933045,1.2109097,57431.0,57430.0,3.23755655]
[1617526933846,1.45587757,57431.0,57430.0,0.37725655]
[1617526934046,1.59526757,57431.0,57430.0,0.37725655]
[1617526934246,4.9806997,57431.0,57430.0,0.37725655]
[1617526934447,4.9806997,57431.0,57430.0,0.27]
[1617526934647,6.59312195,57431.0,57430.0,0.27]
[1617526934846,6.59312195,57431.0,57411.0,0.01]
[1617526935050,7.09389813,57431.0,57411.0,0.01]
[1617526935247,6.29389813,57431.0,57430.0,0.27]
[1617526935448,4.07704655,57431.0,57412.0,0.01]
[1617526935848,5.67842113,57431.0,57405.0,0.27]
[1617526936047,5.67842113,57431.0,57413.0,0.01]
[1617526936249,0.23808655,57414.0,57413.0,0.01]
[1617526936448,0.23808655,57414.0,57409.0,0.10725655]
[1617526936649,1.14357193,57414.0,57410.0,0.27]
[1617526936849,1.14357193,57414.0,57413.0,0.01]
[1617526937048,1.14357193,57414.0,57409.0,0.10725655]
[1617526937049,0.23808655,57414.0,57409.0,0.10725655]
[1617526937248,0.23808655,57414.0,57411.0,0.27]
[1617526937449,0.23808655,57414.0,57413.0,0.27]
[1617526937450,0.89845443,57414.0,57413.0,0.27]
[1617526937651,0.89845443,57414.0,57410.0,0.01]
[1617526937849,0.44021369,57417.0,57413.0,3.1734]
[1617526938050,0.44021369,57417.0,57413.0,3.4534]
[1617526938252,0.44044075,57420.0,57416.0,0.10725655]
[1617526938652,0.44044075,57420.0,57417.0,0.27]
[1617526938853,0.44051134,57421.0,57417.0,0.27]
[1617526939253,0.66072708,57418.0,57417.0,0.27]
[1617526941254,0.82382708,57418.0,57417.0,0.27]
[1617526941655,1.06882922,57418.0,57417.0,0.27]
[1617526947559,0.70844173,57418.0,57417.0,0.27]
[1617526947759,0.11897,57418.0,57417.0,0.27]
[1617526948062,0.77813489,57418.0,57417.0,0.27]
[1617526948960,1.02315556,57418.0,57417.0,0.27]
[1617526949162,0.77813489,57418.0,57417.0,0.27]
[1617526949661,1.02315528,57418.0,57417.0,0.27]
[1617526950361,0.11897,57418.0,57417.0,0.27]
[1617526950563,0.65888909,57418.0,57417.0,0.27]
[1617526950962,0.79814909,57418.0,57417.0,0.27]
[1617526951162,0.13926,57418.0,57417.0,0.27]
[1617526951365,1.04324819,57418.0,57417.0,0.27]
[1617526951763,0.79822933,57418.0,57417.0,0.27]
[1617526951964,0.13926,57418.0,57417.0,0.27]
[1617526952166,0.79829276,57418.0,57417.0,0.27]
[1617526952967,0.29962165,57418.0,57417.0,0.27]
[1617526953366,0.2996169,57418.0,57417.0,0.27]
[1617526953767,3.0942,57421.0,57417.0,0.27]
[1617526953968,0.29965118,57418.0,57417.0,0.27]
[1617526959079,0.65888438,57418.0,57417.0,0.27]
[1617526959677,0.65888438,57418.0,57408.0,0.27]
[1617526960071,0.65888438,57418.0,57417.0,0.27]
[1617526960272,0.65888438,57418.0,57408.0,0.28]
[1617526960471,0.29933605,57414.0,57413.0,0.10725655]
[1617526960872,0.01007522,57414.0,57413.0,0.37725655]
[1617526961775,0.01007989,57415.0,57413.0,0.37725655]
[1617526962375,0.11733644,57415.0,57413.0,0.37725655]
[1617526962574,0.00509069,57414.0,57413.0,0.37725655]
[1617526963375,0.00209629,57414.0,57413.0,0.37725655]
[1617526965379,0.0020965,57415.0,57413.0,0.37725655]
[1617526967280,0.00209677,57414.0,57413.0,0.37725655]
[1617526968180,0.00209692,57415.0,57413.0,0.37725655]
[1617526971600,0.00209808,57414.0,57413.0,0.37725655]
[1617526971986,0.00509444,57414.0,57413.0,0.37725655]
[1617526972386,0.01009845,57414.0,57413.0,0.37725655]
[1617526973488,0.00510076,57414.0,57413.0,0.37725655]
[1617526974490,0.11235731,57414.0,57413.0,0.37725655]
[1617526975395,0.10725655,57414.0,57413.0,0.37725655]
[1617526975794,0.11236021,57414.0,57413.0,0.37725655]
[1617526976998,0.00510366,57414.0,57413.0,0.37725655]
[1617526978897,0.01010725,57415.0,57413.0,0.37725655]
[1617526979500,0.0051055,57414.0,57413.0,0.37725655]
[1617526983406,0.01012027,57414.0,57413.0,0.37725655]
[1617526984402,0.30070219,57415.0,57413.0,0.37725655]
[1617526984403,0.01012212,57415.0,57413.0,0.37725655]
[1617526984633,0.01012212,57415.0,57413.0,0.53060655]
[1617526984803,0.01012201,57414.0,57413.0,0.53060655]
[1617526985003,0.01012201,57414.0,57413.0,4.11450655]
[1617526985203,0.36088879,57419.0,57413.0,4.31450655]
[1617526985204,0.00210613,57418.0,57413.0,4.31450655]
[1617526985606,0.00210706,57421.0,57414.0,0.1429129]
[1617526985805,0.00210706,57421.0,57417.0,1.0]
[1617526986005,0.00210706,57421.0,57418.0,0.2]
[1617526986207,0.00210798,57424.0,57420.0,1.0]
[1617526986406,0.00210798,57424.0,57423.0,0.10725655]
[1617526986606,0.00511938,57425.0,57423.0,0.10725655]
[1617526986607,0.00210788,57425.0,57423.0,0.10725655]
[1617526986809,0.00210788,57425.0,57423.0,0.37725655]
[1617526987007,0.00210873,57426.0,57423.0,1.37725655]
[1617526987208,0.00210873,57426.0,57424.0,1.0]
[1617526987406,0.00210873,57426.0,57425.0,1.0]
[1617526987607,0.00210987,57429.0,57425.0,1.42164]
[1617526988008,0.00211004,57430.0,57426.0,1.0]
[1617526988408,0.00512398,57431.0,57423.0,0.10725655]
[1617526988409,0.00512398,57431.0,57430.0,2.61]
[1617526988808,0.01014733,57431.0,57430.0,2.61]
[1617526989209,0.01014733,57431.0,57430.0,2.88]
[1617526989411,0.30150629,57432.0,57430.0,2.88]
[1617526989412,0.00210777,57432.0,57430.0,2.88]
[1617526991815,0.00210792,57431.0,57430.0,2.88]
[1617526992418,0.00210797,57432.0,57430.0,2.88]
[1617526992717,0.00210775,57431.0,57430.0,2.88]
[1617526993421,0.00210775,57431.0,57430.0,0.27]
[1617526993620,0.0021075,57432.0,57430.0,0.27]
[1617526994022,0.00210756,57431.0,57430.0,0.27]
[1617526994421,0.00511924,57433.0,57430.0,0.27]
[1617526994422,0.00210756,57432.0,57430.0,0.27]
[1617526994822,0.00210726,57431.0,57430.0,0.27]
[1617526995523,0.0021078,57432.0,57430.0,0.27]
[1617526996324,0.0021078,57432.0,57430.0,1.27]
[1617526996525,0.0021077,57433.0,57430.0,1.27]
[1617526996926,0.00210789,57434.0,57430.0,0.27]
[1617526997327,0.00210772,57433.0,57430.0,0.27]
[1617526998626,0.00210703,57432.0,57430.0,0.27]
[1617526999627,0.00210752,57431.0,57430.0,0.27]
[1617527000729,0.00210708,57432.0,57430.0,0.27]
[1617527003529,0.00211405,57432.0,57430.0,0.27]
[1617527003729,0.00211405,57432.0,57431.0,3.6087]
[1617527003931,0.00513329,57432.0,57431.0,3.6087]
[1617527004128,0.00513329,57432.0,57431.0,3.8787]
[1617527004329,0.00513329,57432.0,57431.0,0.27]
[1617527004729,0.00211345,57432.0,57430.0,0.27]
[1617527005130,0.00211345,57432.0,57431.0,2.9511]
[1617527005530,0.00211345,57432.0,57431.0,3.2211]
[1617527010641,0.00211451,57433.0,57431.0,3.2211]
[1617527013142,0.0021144,57432.0,57431.0,3.2211]
[1617527013541,0.00211461,57433.0,57431.0,3.2211]
[1617527016046,0.00211461,57433.0,57431.0,0.27]
[1617527016445,0.00211461,57433.0,57430.0,0.27]
[1617527016646,0.00211461,57433.0,57432.0,3.6658]
[1617527017046,0.00211461,57433.0,57432.0,3.9358]
[1617527017248,3.33713548,57434.0,57432.0,3.9358]
[1617527017446,0.00513692,57433.0,57432.0,3.9358]
[1617527018248,0.00211581,57433.0,57432.0,3.9358]
[1617527018947,3.33713841,57434.0,57432.0,3.9358]
[1617527019148,0.00513843,57433.0,57432.0,3.9358]
[1617527019450,0.0021161,57433.0,57432.0,3.9358]
[1617527022455,3.33411782,57434.0,57432.0,3.9358]
[1617527022656,0.00211782,57434.0,57432.0,1.38483]
[1617527022853,0.00211782,57434.0,57432.0,0.38483]
[1617527023456,0.01018686,57437.0,57432.0,0.38483]
[1617527023457,0.00211824,57436.0,57432.0,0.38483]
[1617527023655,0.00211824,57436.0,57435.0,3.2747]
[1617527024055,0.00211824,57436.0,57435.0,3.5447]
[1617527024256,0.00211859,57437.0,57435.0,3.5447]
[1617527024755,0.00211859,57437.0,57436.0,0.10725655]
[1617527025157,0.00211859,57437.0,57436.0,0.37725655]
[1617527025557,0.00211864,57439.0,57436.0,0.37725655]
[1617527026358,0.00211652,57440.0,57436.0,0.37725655]
[1617527026859,0.00211507,57439.0,57436.0,0.37725655]
[1617527027259,0.0021162,57438.0,57436.0,0.37725655]
[1617527028161,0.00211589,57437.0,57436.0,0.37725655]
[1617527029161,0.00513979,57437.0,57436.0,0.37725655]
[1617527029761,0.01017826,57437.0,57436.0,0.37725655]
[1617527031062,0.00513993,57437.0,57436.0,0.37725655]
[1617527034564,0.00513993,57437.0,57436.0,0.49698655]
[1617527035565,0.01017908,57438.0,57437.0,2.7882]
[1617527035967,0.0101814,57439.0,57437.0,3.0582]
[1617527036868,0.00514212,57438.0,57437.0,3.0582]
[1617527037267,0.00514216,57439.0,57437.0,3.0582]
[1617527037769,0.00211744,57438.0,57437.0,3.0582]
[1617527038369,0.30343881,57438.0,57437.0,3.0582]
[1617527038569,0.30343881,57438.0,57437.0,4.0582]
[1617527038971,0.27003881,57438.0,57437.0,4.2582]
[1617527039170,0.01022061,57438.0,57437.0,4.40107277]
[1617527039675,0.00516188,57438.0,57437.0,4.40107277]
[1617527040072,0.00212618,57438.0,57437.0,4.40107277]
[1617527040473,0.0021265,57439.0,57437.0,4.77207474]
[1617527040872,0.0021265,57439.0,57438.0,1.0]
[1617527041072,0.0021265,57439.0,57437.0,3.77207474]
[1617527041273,0.0021265,57439.0,57438.0,1.27]
[1617527041475,0.01022429,57439.0,57438.0,0.27]
[1617527041873,0.36442704,57442.0,57438.0,0.27]
[1617527042073,0.36442704,57442.0,57441.0,2.5569]
[1617527042473,0.36442704,57442.0,57441.0,2.8369]
[1617527042674,0.36451954,57443.0,57441.0,2.8369]
[1617527042873,0.36451954,57443.0,57442.0,0.10725655]
[1617527043074,0.61229239,57449.0,57442.0,0.10725655]
[1617527043075,0.36457327,57444.0,57442.0,0.10725655]
[1617527043273,0.36457327,57444.0,57442.0,0.37725655]
[1617527044196,0.3644592,57443.0,57442.0,0.37725655]
[1617527045578,0.36459529,57444.0,57442.0,0.37725655]
[1617527045778,0.36459529,57444.0,57442.0,1.49650655]
[1617527045979,0.36459529,57444.0,57442.0,0.49650655]
[1617527046379,0.36461028,57445.0,57442.0,0.49650655]
[1617527046879,0.36461822,57444.0,57442.0,0.49650655]
[1617527047080,0.36461822,57444.0,57442.0,0.37725655]
[1617527047281,0.60953428,57444.0,57442.0,0.37725655]
[1617527047581,0.36464971,57445.0,57442.0,0.37725655]
[1617527049383,3.2973,57450.0,57442.0,0.37725655]
[1617527049784,0.36484788,57445.0,57442.0,0.37725655]
[1617527050685,3.74320267,57450.0,57442.0,0.37725655]
[1617527050686,0.36492145,57446.0,57442.0,0.37725655]
[1617527050885,0.36492145,57446.0,57445.0,2.8772]
[1617527051086,0.44590267,57450.0,57445.0,2.8772]
[1617527051286,0.44590267,57450.0,57445.0,3.1472]
[1617527051688,0.36427303,57447.0,57445.0,3.1472]
[1617527052186,0.36427303,57447.0,57445.0,0.27]
[1617527052486,0.36430021,57448.0,57445.0,0.27]
[1617527052686,0.36430021,57448.0,57446.0,3.6864]
[1617527052887,0.3642956,57449.0,57446.0,3.9564]
[1617527053186,0.3642956,57449.0,57446.0,3.6864]
[1617527053586,0.3642956,57449.0,57447.0,0.27]
[1617527053787,0.47167089,57451.0,57447.0,0.27]
[1617527054787,0.36437018,57450.0,57447.0,0.27]
[1617527055390,0.3644068,57449.0,57447.0,0.27]
[1617527055790,0.10725655,57451.0,57447.0,0.27]
[1617527055791,0.47195397,57451.0,57447.0,0.27]
[1617527056593,0.01023739,57448.0,57447.0,0.27]
[1617527056794,0.01023739,57448.0,57447.0,0.37725655]
[1617527056995,0.47225465,57451.0,57447.0,0.37725655]
[1617527057396,0.01023958,57448.0,57447.0,0.37725655]
[1617527059400,0.47232799,57451.0,57447.0,0.37725655]
[1617527059801,0.01024128,57448.0,57447.0,0.37725655]
[1617527060200,0.10725655,57451.0,57447.0,0.37725655]
[1617527060400,0.47233342,57451.0,57447.0,0.37725655]
[1617527061001,0.01023917,57448.0,57447.0,0.37725655]
[1617527061200,0.01023917,57448.0,57447.0,0.51007655]
[1617527061903,0.0102362,57449.0,57447.0,0.51007655]
[1617527062803,0.00212642,57448.0,57447.0,0.51007655]
[1617527067211,0.00212671,57449.0,57447.0,0.51007655]
[1617527068512,0.00212678,57448.0,57447.0,0.51007655]
[1617527070813,0.00212673,57449.0,57447.0,0.51007655]
[1617527071415,0.00212673,57449.0,57447.0,0.37725655]
[1617527072016,0.00212748,57450.0,57447.0,0.37725655]
[1617527073417,0.00212745,57449.0,57447.0,0.37725655]
[1617527077723,0.00212736,57450.0,57447.0,0.37725655]
[1617527078524,0.00212675,57448.0,57447.0,0.37725655]
[1617527080226,0.00516561,57448.0,57447.0,0.37725655]
[1617527081228,0.00516643,57449.0,57447.0,0.37725655]
[1617527081527,0.0021276,57448.0,57447.0,0.37725655]
[1617527085333,0.00516994,57449.0,57447.0,0.37725655]
[1617527086533,0.00212866,57448.0,57447.0,0.37725655]
[1617527086934,0.00516941,57448.0,57447.0,0.37725655]
[1617527089236,0.01023539,57448.0,57447.0,0.37725655]
[1617527090137,0.01023539,57448.0,57447.0,3.29665655]
[1617527090338,0.01023554,57449.0,57447.0,3.29665655]
[1617527090739,0.01023518,57448.0,57447.0,3.29665655]
[1617527091240,0.00516955,57448.0,57447.0,3.29665655]
[1617527093243,0.30472289,57448.0,57447.0,3.29665655]
[1617527101960,0.01025979,57448.0,57447.0,3.29665655]
[1617527106165,0.01025979,57448.0,57447.0,3.43951067]
[1617527106668,0.01025979,57448.0,57447.0,3.29665655]
[1617527111472,0.30507017,57448.0,57447.0,3.29665655]
[1617527112272,0.30507017,57448.0,57447.0,0.37725655]
[1617527117276,0.30507017,57448.0,57447.0,0.27]
[1617527117678,0.41232672,57448.0,57447.0,0.10725655]
[1617527117878,0.41232672,57448.0,57445.0,0.27]
[1617527118079,0.41232672,57448.0,57447.0,0.28]
[1617527118278,3.97332672,57448.0,57445.0,0.27]
[1617527118480,4.33881721,57448.0,57445.0,0.27]
[1617527118678,4.33881721,57448.0,57447.0,0.27]
[1617527118878,4.33881721,57448.0,57438.0,0.57086123]
[1617527118879,4.33881721,57448.0,57446.0,0.27]
[1617527119080,0.2449123,57447.0,57446.0,0.27]
[1617527119279,0.2449123,57447.0,57438.0,0.57086123]
[1617527119480,0.91502436,57447.0,57446.0,0.27]
[1617527119879,3.7044,57441.0,57439.0,0.27]
[1617527120080,0.00517601,57441.0,57437.0,0.57088896]
[1617527120481,0.00517601,57441.0,57433.0,0.10725655]
[1617527120482,0.01024758,57440.0,57439.0,0.27]
[1617527120681,0.01024758,57440.0,57438.0,0.27]
[1617527120882,0.01024758,57440.0,57437.0,0.01]
[1617527121082,0.01024758,57440.0,57439.0,0.26]
[1617527121281,0.01024758,57440.0,57436.0,0.01]
[1617527121481,0.0021306,57438.0,57436.0,0.58089279]
[1617527121681,0.10725655,57437.0,57436.0,0.57089279]
[1617527121881,0.10725655,57437.0,57433.0,0.10725655]
[1617527121882,0.10938699,57437.0,57435.0,0.57089181]
[1617527122084,0.10938699,57437.0,57436.0,0.27]
[1617527122283,0.10938699,57437.0,57435.0,0.57089181]
[1617527122684,0.22472699,57437.0,57436.0,0.28]
[1617527123082,0.22776884,57437.0,57434.0,0.8508408]
[1617527123281,0.22776884,57437.0,57434.0,0.5708408]
[1617527123482,0.22776884,57437.0,57435.0,0.27]
[1617527123483,0.0021297,57436.0,57435.0,0.27]
[1617527123682,0.0021297,57436.0,57433.0,0.67810142]
[1617527123882,0.0021297,57436.0,57434.0,0.27]
[1617527124082,0.0021297,57436.0,57435.0,0.27]
[1617527124282,0.0021297,57436.0,57433.0,0.67810142]
[1617527124483,0.0021297,57436.0,57434.0,0.27]
[1617527124685,0.0021297,57436.0,57435.0,0.27]
[1617527124882,0.0021297,57436.0,57433.0,0.67810142]
[1617527125084,0.0021297,57436.0,57434.0,0.27]
[1617527125283,0.0021297,57436.0,57435.0,0.28]
[1617527125485,0.11455938,57437.0,57434.0,0.57084105]
[1617527125686,0.10938709,57437.0,57434.0,0.84084105]
[1617527126087,0.10938709,57437.0,57435.0,0.57083911]
[1617527126488,0.10938709,57437.0,57436.0,0.27]
[1617527126789,0.10938709,57437.0,57434.0,0.85084238]
[1617527127192,0.10938709,57437.0,57434.0,0.57084238]
[1617527127591,0.10938709,57437.0,57435.0,0.27]
[1617527128390,0.00213054,57436.0,57435.0,0.27]
[1617527128790,0.10938709,57437.0,57435.0,0.27]
[1617527129392,0.00213016,57436.0,57435.0,0.27]
[1617527129592,0.11242981,57437.0,57435.0,0.27]
[1617527129593,0.10938439,57437.0,57435.0,0.27]
[1617527129795,0.10938439,57437.0,57436.0,2.8386]
[1617527130093,0.10725655,57437.0,57436.0,3.1086]
[1617527130392,0.10725655,57437.0,57436.0,2.8386]
[1617527130792,0.10725655,57437.0,57436.0,3.1086]
[1617527131193,0.10725655,57437.0,57436.0,0.27]
[1617527131594,0.10725655,57437.0,57434.0,0.27]
[1617527131994,0.1093856,57437.0,57436.0,0.27]
[1617527132193,0.1093856,57437.0,57434.0,0.27]
[1617527132396,0.10725655,57437.0,57434.0,0.27]
[1617527132595,3.631,57435.0,57433.0,0.10725655]
[1617527132995,3.631,57435.0,57434.0,0.27]
[1617527140804,0.10725655,57437.0,57434.0,0.27]
[1617527143807,3.4905,57435.0,57434.0,0.27]
[1617527158024,3.60998,57435.0,57434.0,0.27]
[1617527159521,3.4905,57435.0,57434.0,0.27]
[1617527168038,3.4905,57435.0,57434.0,0.84079872]
[1617527182757,3.59775655,57435.0,57434.0,0.94805527]
[1617527184461,0.10725655,57435.0,57434.0,0.94805527]
[1617527184663,0.10725655,57435.0,57434.0,3.75425527]
[1617527185863,0.10725655,57435.0,57434.0,0.94805527]
[1617527186063,3.54295655,57435.0,57434.0,0.94805527]
[1617527188466,0.10725655,57435.0,57434.0,0.94805527]
[1617527188867,0.10725655,57435.0,57434.0,4.61875527]
[1617527189067,0.00213243,57436.0,57434.0,4.61875527]
[1617527189468,0.00213243,57436.0,57434.0,5.61875527]
[1617527189669,0.00213558,57438.0,57435.0,1.71410913]
[1617527190072,0.0021363,57440.0,57437.0,4.07090362]
[1617527190268,0.0021363,57440.0,57437.0,4.27090362]
[1617527190469,0.00213734,57443.0,57439.0,0.57119025]
[1617527190668,0.00213734,57443.0,57439.0,1.57119025]
[1617527190869,0.00213734,57443.0,57442.0,0.79809665]
[1617527191069,0.00213734,57443.0,57442.0,1.79809665]
[1617527191270,0.00213763,57444.0,57442.0,2.06809665]
[1617527191670,0.00213811,57445.0,57443.0,1.5711763]
[1617527192069,0.00519256,57446.0,57442.0,0.49691655]
[1617527192070,0.00213397,57449.0,57444.0,1.27]
[1617527192476,0.01026336,57452.0,57442.0,0.79692823]
[1617527192477,0.00213471,57451.0,57448.0,3.415]
[1617527192689,0.00213471,57451.0,57445.0,1.0]
[1617527192894,0.00213471,57451.0,57450.0,3.52185655]
[1617527193078,0.00213471,57451.0,57450.0,4.52185655]
[1617527193276,0.0051843,57452.0,57450.0,4.52185655]
[1617527193277,0.01026695,57453.0,57450.0,4.79185655]
[1617527193278,0.00213563,57453.0,57450.0,4.79185655]
[1617527193683,0.10725655,57455.0,57451.0,1.14283874]